[Event "*** Titled Tuesday 3|2 Blitz"]
[Site "Chess.com"]
[Date "2015.10.06"]
[Round "2"]
[White "Zvonokchess"]
[Black "JustKid"]
[Result "0-1"]
[WhiteElo "2520"]
[BlackElo "2145"]
[TimeControl "180+2"]
[EndTime "17:23:47 PDT"]
[Termination "JustKid won by checkmate"]

1. Nf3 {[%clk 0:03:01.9]} 1... d5 {[%clk 0:02:54.5]} 2. g3 {[%clk 0:03:03]} 2...
c5 {[%clk 0:02:52.6]} 3. Bg2 {[%clk 0:03:03.7]} 3... Nc6 {[%clk 0:02:53.8]} 4.
d4 {[%clk 0:03:03.3]} 4... e6 {[%clk 0:02:53.2]} 5. O-O {[%clk 0:03:00.2]} 5...
Nf6 {[%clk 0:02:54.3]} 6. c4 {[%clk 0:02:55.5]} 6... Be7 {[%clk 0:02:55.6]} 7.
Ne5 {[%clk 0:02:53.5]} 7... O-O {[%clk 0:02:53.4]} 8. cxd5 {[%clk 0:02:49.6]}
8... exd5 {[%clk 0:02:54.8]} 9. e3 {[%clk 0:02:37.5]} 9... Be6 {[%clk 0:02:43]}
10. Nc3 {[%clk 0:02:37.5]} 10... c4 {[%clk 0:02:39.1]} 11. Nxc6 {[%clk
0:02:36.4]} 11... bxc6 {[%clk 0:02:40.4]} 12. Bd2 {[%clk 0:02:30.2]} 12... Rb8
{[%clk 0:02:36.6]} 13. b3 {[%clk 0:02:29]} 13... cxb3 {[%clk 0:02:35.3]} 14.
axb3 {[%clk 0:02:30.9]} 14... Qb6 {[%clk 0:02:35.3]} 15. Qe2 {[%clk 0:02:19.8]}
15... Bf5 {[%clk 0:02:28]} 16. h3 {[%clk 0:02:13.4]} 16... Qxb3 {[%clk
0:02:20.7]} 17. Rxa7 {[%clk 0:02:13.5]} 17... Bb4 {[%clk 0:02:21.5]} 18. Rc1
{[%clk 0:01:59.3]} 18... Ba3 {[%clk 0:02:03.1]} 19. Re1 {[%clk 0:01:11.9]} 19...
Bb4 {[%clk 0:02:01.5]} 20. Na4 {[%clk 0:01:09.6]} 20... Bd3 {[%clk 0:01:39.1]}
21. Qd1 {[%clk 0:01:07.9]} 21... Bc2 {[%clk 0:01:29.4]} 22. Qc1 {[%clk
0:01:08.6]} 22... Ba3 {[%clk 0:01:27.2]} 23. Qa1 {[%clk 0:01:01.7]} 23... Ne4
{[%clk 0:01:01.1]} 24. Bxe4 {[%clk 0:00:49.7]} 24... Bxe4 {[%clk 0:01:03]} 25.
Nc5 {[%clk 0:00:47.4]} 25... Bxc5 {[%clk 0:01:02.2]} 26. dxc5 {[%clk 0:00:49.3]}
26... Qc2 {[%clk 0:00:59.4]} 27. Bc3 {[%clk 0:00:48.2]} 27... f6 {[%clk
0:00:44.4]} 28. Qa5 {[%clk 0:00:46.9]} 28... Bf3 {[%clk 0:00:22.5]} 29. Qc7
{[%clk 0:00:45.7]} 29... Qg6 {[%clk 0:00:24.2]} 30. Qxc6 {[%clk 0:00:44.3]}
30... Rb1 {[%clk 0:00:20.8]} 31. Qe6+ {[%clk 0:00:39.3]} 31... Kh8 {[%clk
0:00:21.5]} 32. Ra1 {[%clk 0:00:23.3]} 32... Rxe1+ {[%clk 0:00:21.3]} 33. Bxe1
{[%clk 0:00:24.5]} 33... h5 {[%clk 0:00:18.3]} 34. c6 {[%clk 0:00:25]} 34... h4
{[%clk 0:00:13]} 35. c7 {[%clk 0:00:25.7]} 35... hxg3 {[%clk 0:00:14.3]} 36.
fxg3 {[%clk 0:00:26.9]} 36... Qc2 {[%clk 0:00:11.4]} 37. Bf2 {[%clk 0:00:12.1]}
37... Qxc7 {[%clk 0:00:12.4]} 38. Qf5 {[%clk 0:00:13.1]} 38... Be4 {[%clk
0:00:13.6]} 39. Qh5+ {[%clk 0:00:14]} 39... Kg8 {[%clk 0:00:15.3]} 40. Rd1
{[%clk 0:00:14.6]} 40... Rb8 {[%clk 0:00:15.3]} 41. Qg4 {[%clk 0:00:15]} 41...
Rb2 {[%clk 0:00:15.7]} 42. Qe6+ {[%clk 0:00:16.1]} 42... Kh8 {[%clk 0:00:14.8]}
43. Qe8+ {[%clk 0:00:16.8]} 43... Kh7 {[%clk 0:00:15.6]} 44. Qh5+ {[%clk
0:00:17.6]} 44... Kg8 {[%clk 0:00:17.1]} 45. Ra1 {[%clk 0:00:15.4]} 45... Rb8
{[%clk 0:00:14.2]} 46. Qe2 {[%clk 0:00:14.1]} 46... Rc8 {[%clk 0:00:12.5]} 47.
Qd2 {[%clk 0:00:13.2]} 47... Qd7 {[%clk 0:00:13.7]} 48. Rd1 {[%clk 0:00:12.6]}
48... Qxh3 {[%clk 0:00:14.3]} 49. Be1 {[%clk 0:00:10.9]} 49... Qh1+ {[%clk
0:00:12.4]} 50. Kf2 {[%clk 0:00:12]} 50... Qg2# {[%clk 0:00:14.1]} 0-1

[Event "*** Titled Tuesday 3|2 Blitz"]
[Site "Chess.com"]
[Date "2015.10.06"]
[Round "2"]
[White "Mornar1951"]
[Black "IM_Michal_Luch"]
[Result "1-0"]
[WhiteElo "2606"]
[BlackElo "2349"]
[TimeControl "180+2"]
[EndTime "17:23:59 PDT"]
[Termination "Mornar1951 won by resignation"]

1. Nf3 {[%clk 0:03:01.9]} 1... d5 {[%clk 0:03:00.2]} 2. d4 {[%clk 0:02:58.2]}
2... Nf6 {[%clk 0:03:01.1]} 3. c4 {[%clk 0:02:59.8]} 3... e6 {[%clk 0:03:02.5]}
4. g3 {[%clk 0:03:01]} 4... dxc4 {[%clk 0:03:03.7]} 5. Qa4+ {[%clk 0:03:01.5]}
5... Nbd7 {[%clk 0:03:04.4]} 6. Bg2 {[%clk 0:03:01.4]} 6... a6 {[%clk
0:03:02.7]} 7. Nc3 {[%clk 0:03:02.4]} 7... Rb8 {[%clk 0:03:03]} 8. Qxc4 {[%clk
0:03:03.2]} 8... b5 {[%clk 0:03:03.8]} 9. Qd3 {[%clk 0:03:04.8]} 9... Bb7 {[%clk
0:03:02.4]} 10. O-O {[%clk 0:03:00.1]} 10... c5 {[%clk 0:03:03.1]} 11. Bf4
{[%clk 0:03:00.1]} 11... Rc8 {[%clk 0:03:03.3]} 12. dxc5 {[%clk 0:03:01.4]}
12... Nxc5 {[%clk 0:03:02.9]} 13. Qxd8+ {[%clk 0:02:59.6]} 13... Rxd8 {[%clk
0:03:03.5]} 14. Rfd1 {[%clk 0:02:59.7]} 14... Rxd1+ {[%clk 0:02:20.1]} 15. Rxd1
{[%clk 0:02:59.8]} 15... b4 {[%clk 0:02:21.6]} 16. Nb1 {[%clk 0:02:53.4]} 16...
Nd5 {[%clk 0:02:21.8]} 17. Ne5 {[%clk 0:02:12.6]} 17... f6 {[%clk 0:02:05.8]}
18. Nc4 {[%clk 0:02:10.5]} 18... Nxf4 {[%clk 0:01:58.2]} 19. gxf4 {[%clk
0:02:03.8]} 19... Bxg2 {[%clk 0:01:58.9]} 20. Kxg2 {[%clk 0:02:05.7]} 20... Be7
{[%clk 0:01:58]} 21. Nd6+ {[%clk 0:01:48.4]} 21... Kf8 {[%clk 0:01:32.5]} 22. a3
{[%clk 0:01:45.7]} 22... bxa3 {[%clk 0:01:28.1]} 23. Nxa3 {[%clk 0:01:45.8]}
23... h5 {[%clk 0:01:14.9]} 24. Nac4 {[%clk 0:01:28.6]} 24... h4 {[%clk
0:01:12.1]} 25. b4 {[%clk 0:01:18.4]} 25... Nd7 {[%clk 0:00:57]} 26. Ra1 {[%clk
0:00:44.1]} 26... Nb8 {[%clk 0:00:35.4]} 27. b5 {[%clk 0:00:31.6]} 27... axb5
{[%clk 0:00:36.7]} 28. Ra8 {[%clk 0:00:32.2]} 28... Bxd6 {[%clk 0:00:37.8]} 29.
Nxd6 {[%clk 0:00:34.1]} 29... Ke7 {[%clk 0:00:39.1]} 30. Nxb5 {[%clk 0:00:34.9]}
30... Rd8 {[%clk 0:00:37.1]} 31. Kh3 {[%clk 0:00:31.6]} 31... Nc6 {[%clk
0:00:23.4]} 32. Rxd8 {[%clk 0:00:31.6]} 32... Nxd8 {[%clk 0:00:22.9]} 33. Kxh4
{[%clk 0:00:32.8]} 33... Kf7 {[%clk 0:00:22]} 34. Nd4 {[%clk 0:00:29.8]} 34...
Nb7 {[%clk 0:00:21.9]} 35. Kg4 {[%clk 0:00:30]} 35... Nd6 {[%clk 0:00:20.7]} 36.
f5 {[%clk 0:00:28.7]} 36... exf5+ {[%clk 0:00:20.2]} 37. Nxf5 {[%clk 0:00:29.6]}
37... Ne4 {[%clk 0:00:21.6]} 38. f3 {[%clk 0:00:29.3]} 38... Nc3 {[%clk
0:00:20.2]} 39. e4 {[%clk 0:00:30]} 39... Ne2 {[%clk 0:00:18]} 40. h4 {[%clk
0:00:30]} 40... g6 {[%clk 0:00:15.4]} 41. Ng3 {[%clk 0:00:30.9]} 41... Nd4
{[%clk 0:00:15]} 42. h5 {[%clk 0:00:30.1]} 42... gxh5+ {[%clk 0:00:16]} 43. Nxh5
{[%clk 0:00:30.9]} 43... Ke6 {[%clk 0:00:15.1]} 44. Ng3 {[%clk 0:00:30.2]} 44...
Nc6 {[%clk 0:00:14.7]} 45. Kf4 {[%clk 0:00:30.5]} 45... Nd4 {[%clk 0:00:14.9]}
46. Ke3 {[%clk 0:00:29]} 46... Nc2+ {[%clk 0:00:15.9]} 47. Kd3 {[%clk
0:00:27.2]} 47... Ne1+ {[%clk 0:00:15.5]} 48. Ke3 {[%clk 0:00:26.8]} 48... Nc2+
{[%clk 0:00:16.5]} 49. Kf4 {[%clk 0:00:28.1]} 49... Nd4 {[%clk 0:00:17.3]} 50.
Nf5 {[%clk 0:00:25.9]} 50... Nxf5 {[%clk 0:00:09.7]} 51. exf5+ {[%clk
0:00:27.8]} 51... Kd5 {[%clk 0:00:11.2]} 52. Kg3 {[%clk 0:00:24.9]} 52... Kd4
{[%clk 0:00:11.1]} 53. Kh4 {[%clk 0:00:20.6]} 53... Ke5 {[%clk 0:00:12.2]} 54.
Kg4 {[%clk 0:00:21.4]} 54... Kd5 {[%clk 0:00:13.6]} 55. Kh5 {[%clk 0:00:22.5]}
55... Kd6 {[%clk 0:00:14.1]} 56. Kg6 {[%clk 0:00:22.7]} 56... Ke7 {[%clk
0:00:15.3]} 57. Kg7 {[%clk 0:00:23.3]} 1-0

[Event "*** Titled Tuesday 3|2 Blitz"]
[Site "Chess.com"]
[Date "2015.10.06"]
[Round "2"]
[White "jbj"]
[Black "StellarChessPro"]
[Result "1-0"]
[WhiteElo "2272"]
[BlackElo "2237"]
[TimeControl "180+2"]
[EndTime "17:24:47 PDT"]
[Termination "jbj won by resignation"]

1. e4 {[%clk 0:03:01.9]} 1... c6 {[%clk 0:03:01.9]} 2. d4 {[%clk 0:03:02.9]}
2... d5 {[%clk 0:02:58.2]} 3. Nc3 {[%clk 0:03:04.2]} 3... dxe4 {[%clk 0:02:59]}
4. Nxe4 {[%clk 0:03:06.1]} 4... Bf5 {[%clk 0:02:59.5]} 5. Ng3 {[%clk 0:03:07.2]}
5... Bg6 {[%clk 0:03:00.7]} 6. h4 {[%clk 0:03:08.8]} 6... h6 {[%clk 0:03:01.8]}
7. Nf3 {[%clk 0:03:10.2]} 7... Nd7 {[%clk 0:03:02.8]} 8. h5 {[%clk 0:03:11.7]}
8... Bh7 {[%clk 0:03:03.3]} 9. Bd3 {[%clk 0:03:13.3]} 9... Bxd3 {[%clk 0:03:02]}
10. Qxd3 {[%clk 0:03:15.2]} 10... e6 {[%clk 0:03:02.9]} 11. Bf4 {[%clk
0:03:16.7]} 11... Ngf6 {[%clk 0:03:03.6]} 12. O-O-O {[%clk 0:03:16.3]} 12... Qa5
{[%clk 0:03:04]} 13. Kb1 {[%clk 0:03:17.1]} 13... O-O-O {[%clk 0:03:02.1]} 14.
c4 {[%clk 0:03:13]} 14... Be7 {[%clk 0:02:55.7]} 15. Qb3 {[%clk 0:03:06.7]}
15... Qb6 {[%clk 0:02:54.5]} 16. Qxb6 {[%clk 0:03:02.8]} 16... axb6 {[%clk
0:02:49.5]} 17. b3 {[%clk 0:02:37.7]} 17... Ng4 {[%clk 0:02:49.4]} 18. Rd2
{[%clk 0:02:30.4]} 18... Ndf6 {[%clk 0:02:42.9]} 19. Ne5 {[%clk 0:02:26.8]}
19... Nxe5 {[%clk 0:02:41]} 20. Bxe5 {[%clk 0:02:25.5]} 20... Rhg8 {[%clk
0:02:39.4]} 21. f3 {[%clk 0:02:24.6]} 21... Nd7 {[%clk 0:02:40]} 22. Bf4 {[%clk
0:02:20]} 22... Nf6 {[%clk 0:02:38.4]} 23. Kc2 {[%clk 0:02:16.7]} 23... Rd7
{[%clk 0:02:38.2]} 24. Kc3 {[%clk 0:02:12.6]} 24... Rgd8 {[%clk 0:02:38.2]} 25.
Rhd1 {[%clk 0:02:11.4]} 25... b5 {[%clk 0:02:37.1]} 26. Be5 {[%clk 0:02:02.3]}
26... bxc4 {[%clk 0:02:36.7]} 27. bxc4 {[%clk 0:02:02]} 27... b5 {[%clk
0:02:31.7]} 28. Bxf6 {[%clk 0:01:54.2]} 28... Bxf6 {[%clk 0:02:23.1]} 29. Ne2
{[%clk 0:01:54.9]} 29... Kc7 {[%clk 0:02:18.5]} 30. cxb5 {[%clk 0:01:50.8]}
30... cxb5 {[%clk 0:02:18.9]} 31. Kb4 {[%clk 0:01:51.7]} 31... Kb6 {[%clk
0:02:18.6]} 32. Nc3 {[%clk 0:01:45.2]} 32... Be7+ {[%clk 0:02:18.6]} 33. Kb3
{[%clk 0:01:44.9]} 33... Bf6 {[%clk 0:02:16.7]} 34. Kb4 {[%clk 0:01:31.3]} 34...
Be7+ {[%clk 0:01:56.2]} 35. Kb3 {[%clk 0:01:31.9]} 35... b4 {[%clk 0:01:50.1]}
36. Na4+ {[%clk 0:01:30.6]} 36... Kb5 {[%clk 0:01:46.8]} 37. Nb2 {[%clk
0:00:56.9]} 37... Bf6 {[%clk 0:01:35.5]} 38. Nc4 {[%clk 0:00:57.9]} 38... Rxd4
{[%clk 0:01:32.7]} 39. Rxd4 {[%clk 0:00:57.5]} 39... Rxd4 {[%clk 0:01:34.6]} 40.
Rxd4 {[%clk 0:00:58]} 40... Bxd4 {[%clk 0:01:36.5]} 41. Nd6+ {[%clk 0:00:59.4]}
41... Kc6 {[%clk 0:01:25.4]} 42. Nxf7 {[%clk 0:00:58.2]} 42... Bc5 {[%clk
0:01:23.3]} 43. Kc4 {[%clk 0:00:58.4]} 43... Be7 {[%clk 0:01:22.3]} 44. Ne5+
{[%clk 0:00:57.2]} 44... Kb6 {[%clk 0:01:22.2]} 45. g4 {[%clk 0:00:54.6]} 45...
Bd6 {[%clk 0:01:17.4]} 46. Nd3 {[%clk 0:00:53.2]} 46... Ka5 {[%clk 0:01:18.4]}
47. f4 {[%clk 0:00:42.5]} 47... Ka4 {[%clk 0:01:19.2]} 48. f5 {[%clk 0:00:43.4]}
48... exf5 {[%clk 0:01:16.9]} 49. gxf5 {[%clk 0:00:45.3]} 49... Ka3 {[%clk
0:01:18.2]} 50. Kb5 {[%clk 0:00:37.9]} 50... Kxa2 {[%clk 0:01:02.7]} 51. Nxb4+
{[%clk 0:00:37.6]} 51... Kb3 {[%clk 0:00:52.2]} 52. Nd5 {[%clk 0:00:36.3]} 52...
Kc2 {[%clk 0:00:49.3]} 53. Kc6 {[%clk 0:00:37.6]} 53... Be5 {[%clk 0:00:49.5]}
54. Kd7 {[%clk 0:00:38.5]} 54... Kd3 {[%clk 0:00:50.8]} 55. Ke6 {[%clk
0:00:38.4]} 55... Ke4 {[%clk 0:00:48.4]} 56. Ne7 {[%clk 0:00:25.3]} 56... Ba1
{[%clk 0:00:43.8]} 57. Kf7 {[%clk 0:00:24.7]} 57... Kf4 {[%clk 0:00:43.1]} 58.
Kg6 {[%clk 0:00:25.7]} 58... Kg4 {[%clk 0:00:38.9]} 59. Nc6 {[%clk 0:00:24]}
59... Bc3 {[%clk 0:00:38.7]} 60. Nd8 {[%clk 0:00:24.8]} 60... Bb2 {[%clk
0:00:37.8]} 61. Ne6 {[%clk 0:00:25.8]} 61... Bc3 {[%clk 0:00:36.1]} 62. Nc5
{[%clk 0:00:14.7]} 62... Ba1 {[%clk 0:00:36.5]} 63. Ne4 {[%clk 0:00:15.1]} 63...
Kh4 {[%clk 0:00:34]} 64. Nd2 {[%clk 0:00:13.7]} 64... Kg4 {[%clk 0:00:34]} 65.
Nc4 {[%clk 0:00:15.6]} 65... Kh4 {[%clk 0:00:34.7]} 66. Ne3 {[%clk 0:00:16.4]}
66... Bb2 {[%clk 0:00:34]} 67. Nd1 {[%clk 0:00:16.7]} 67... Ba1 {[%clk
0:00:34.9]} 68. Nf2 {[%clk 0:00:17]} 68... Kg3 {[%clk 0:00:35.1]} 69. Ne4+
{[%clk 0:00:18.9]} 69... Kh4 {[%clk 0:00:36.3]} 70. Nd6 {[%clk 0:00:19.8]} 70...
Bb2 {[%clk 0:00:37.1]} 71. Ne8 {[%clk 0:00:21.1]} 71... Ba1 {[%clk 0:00:37.7]}
72. Nxg7 {[%clk 0:00:22.2]} 1-0

[Event "*** Titled Tuesday 3|2 Blitz"]
[Site "Chess.com"]
[Date "2015.10.06"]
[Round "2"]
[White "wonderfultime"]
[Black "simplerXiao"]
[Result "1/2-1/2"]
[WhiteElo "2639"]
[BlackElo "2440"]
[TimeControl "180+2"]
[EndTime "17:26:08 PDT"]
[Termination "Game drawn by agreement"]

1. d4 {[%clk 0:02:54.2]} 1... Nf6 {[%clk 0:03:00.2]} 2. c4 {[%clk 0:02:54.9]}
2... g6 {[%clk 0:03:01.3]} 3. Nc3 {[%clk 0:02:55.3]} 3... Bg7 {[%clk 0:03:02.6]}
4. e4 {[%clk 0:02:55.8]} 4... O-O {[%clk 0:03:03.8]} 5. f3 {[%clk 0:02:57.4]}
5... d6 {[%clk 0:03:04.9]} 6. Be3 {[%clk 0:02:58.8]} 6... c6 {[%clk 0:03:04.3]}
7. Qd2 {[%clk 0:02:59.2]} 7... a6 {[%clk 0:03:01]} 8. a4 {[%clk 0:03:00.1]} 8...
Nbd7 {[%clk 0:03:00.9]} 9. Bd3 {[%clk 0:03:00.3]} 9... h5 {[%clk 0:03:00.6]} 10.
Nge2 {[%clk 0:03:01.3]} 10... e5 {[%clk 0:02:59.6]} 11. O-O {[%clk 0:03:01.9]}
11... h4 {[%clk 0:02:59.6]} 12. Rad1 {[%clk 0:02:53.4]} 12... Nh5 {[%clk
0:02:45]} 13. Bc2 {[%clk 0:02:51.2]} 13... exd4 {[%clk 0:02:38.3]} 14. Bxd4
{[%clk 0:02:49.3]} 14... Ne5 {[%clk 0:02:35.4]} 15. b3 {[%clk 0:02:48.7]} 15...
Qe7 {[%clk 0:02:27.1]} 16. f4 {[%clk 0:02:36.5]} 16... c5 {[%clk 0:02:20.6]} 17.
Nd5 {[%clk 0:02:30.2]} 17... Qd8 {[%clk 0:02:15.5]} 18. Bc3 {[%clk 0:02:19.8]}
18... Nc6 {[%clk 0:02:08.4]} 19. h3 {[%clk 0:02:03.9]} 19... Be6 {[%clk
0:01:47.3]} 20. Bxg7 {[%clk 0:02:03.4]} 20... Kxg7 {[%clk 0:01:42.2]} 21. Qc3+
{[%clk 0:02:03.6]} 21... Kg8 {[%clk 0:01:39.6]} 22. f5 {[%clk 0:02:01.1]} 22...
Bxd5 {[%clk 0:01:39]} 23. exd5 {[%clk 0:01:59.8]} 23... Ne5 {[%clk 0:01:37.9]}
24. Qe3 {[%clk 0:01:56.6]} 24... Kg7 {[%clk 0:01:28.5]} 25. Nf4 {[%clk
0:01:53.5]} 25... Nxf4 {[%clk 0:01:12.7]} 26. Rxf4 {[%clk 0:01:52.1]} 26... Qg5
{[%clk 0:01:09.3]} 27. f6+ {[%clk 0:01:46.5]} 27... Kg8 {[%clk 0:01:03.7]} 28.
Qf2 {[%clk 0:01:47.6]} 28... Rae8 {[%clk 0:00:51.8]} 29. Rf1 {[%clk 0:01:42.1]}
29... Nd7 {[%clk 0:00:42.2]} 30. Rg4 {[%clk 0:01:41]} 30... Qe3 {[%clk
0:00:36.7]} 31. Bxg6 {[%clk 0:00:57.5]} 31... fxg6 {[%clk 0:00:34.5]} 32. Rxg6+
{[%clk 0:00:57.6]} 32... Kh8 {[%clk 0:00:30.6]} 33. Qxe3 {[%clk 0:00:58.7]}
33... Rxe3 {[%clk 0:00:29.7]} 34. Rf4 {[%clk 0:01:00.6]} 34... Nxf6 {[%clk
0:00:24.8]} 35. Rgxf6 {[%clk 0:00:58.8]} 35... Rxf6 {[%clk 0:00:25.2]} 36. Rxf6
{[%clk 0:01:00.7]} 36... Rxb3 {[%clk 0:00:25]} 37. Rxd6 {[%clk 0:01:02]} 37...
Rb4 {[%clk 0:00:24.8]} 38. a5 {[%clk 0:01:00.4]} 38... Rxc4 {[%clk 0:00:25.1]}
39. Rd8+ {[%clk 0:01:01.7]} 39... Kg7 {[%clk 0:00:26.1]} 40. Rd7+ {[%clk
0:01:03.6]} 40... Kf6 {[%clk 0:00:27.4]} 41. Rxb7 {[%clk 0:01:05]} 41... Ke5
{[%clk 0:00:27.8]} 42. Rb6 {[%clk 0:01:06.2]} 42... Kxd5 {[%clk 0:00:27.3]} 43.
Rxa6 {[%clk 0:01:07.8]} 43... Rc1+ {[%clk 0:00:28.3]} 44. Kf2 {[%clk 0:01:09.3]}
44... c4 {[%clk 0:00:27.6]} 45. Ra8 {[%clk 0:01:08.3]} 45... c3 {[%clk
0:00:28.1]} 46. a6 {[%clk 0:01:08.8]} 46... Ra1 {[%clk 0:00:24.2]} 47. a7 {[%clk
0:01:09.6]} 47... c2 {[%clk 0:00:22.9]} 48. Rc8 {[%clk 0:01:10]} 48... Rxa7
{[%clk 0:00:18.8]} 49. Rxc2 {[%clk 0:01:11.2]} 49... Rf7+ {[%clk 0:00:19.4]} 50.
Ke3 {[%clk 0:01:12.2]} 50... Ke5 {[%clk 0:00:17.6]} 51. Rc4 {[%clk 0:01:13.2]}
51... Rh7 {[%clk 0:00:16.1]} 52. Rc5+ {[%clk 0:01:14.6]} 52... Kd6 {[%clk
0:00:17.5]} 53. Ra5 {[%clk 0:01:15.6]} 53... Ke6 {[%clk 0:00:18.6]} 54. Kf4
{[%clk 0:01:16.7]} 54... Rh8 {[%clk 0:00:18.8]} 55. Kg4 {[%clk 0:01:17.7]} 55...
Kf6 {[%clk 0:00:18.7]} 56. Ra6+ {[%clk 0:01:17.3]} 56... Ke5 {[%clk 0:00:19.6]}
57. Rg6 {[%clk 0:01:18]} 57... Ke4 {[%clk 0:00:19.9]} 58. Rg5 {[%clk 0:01:16.2]}
58... Ke3 {[%clk 0:00:21]} 59. Rf5 {[%clk 0:01:12.2]} 59... Rg8+ {[%clk
0:00:20.5]} 60. Rg5 {[%clk 0:01:12.4]} 60... Rh8 {[%clk 0:00:21.4]} 61. g3
{[%clk 0:01:07.6]} 61... hxg3 {[%clk 0:00:21.6]} 62. Kxg3 {[%clk 0:01:09.5]}
62... Ke4 {[%clk 0:00:22.1]} 63. h4 {[%clk 0:01:10.6]} 63... Ra8 {[%clk
0:00:20.9]} 64. Kg4 {[%clk 0:01:11.9]} 64... Ra1 {[%clk 0:00:21.6]} 65. Kh5
{[%clk 0:01:12.7]} 65... Kf4 {[%clk 0:00:22.6]} 66. Rb5 {[%clk 0:01:12.5]} 66...
Ra8 {[%clk 0:00:21.9]} 67. Kg6 {[%clk 0:01:09.6]} 67... Ra6+ {[%clk 0:00:21.8]}
68. Kh5 {[%clk 0:01:10.4]} 68... Ra8 {[%clk 0:00:22.7]} 69. Kg6 {[%clk
0:00:54.1]} 69... Ra6+ {[%clk 0:00:23.7]} 70. Kg7 {[%clk 0:00:55.6]} 70... Ra7+
{[%clk 0:00:24.5]} 71. Kf6 {[%clk 0:00:57.1]} 71... Ra6+ {[%clk 0:00:25.4]} 72.
Kg7 {[%clk 0:00:54.7]} 72... Ra7+ {[%clk 0:00:26.3]} 73. Kg6 {[%clk 0:00:56.2]}
73... Ra6+ {[%clk 0:00:27.1]} 74. Kh5 {[%clk 0:00:57.9]} 74... Ra8 {[%clk
0:00:27.8]} 75. Rb6 {[%clk 0:00:58.4]} 75... Rh8+ {[%clk 0:00:25.2]} 76. Rh6
{[%clk 0:00:58.8]} 76... Ra8 {[%clk 0:00:24.4]} 77. Rf6+ {[%clk 0:00:59.7]}
77... Ke5 {[%clk 0:00:24.7]} 78. Rf1 {[%clk 0:01:00.4]} 78... Rh8+ {[%clk
0:00:25.6]} 79. Kg5 {[%clk 0:01:00.9]} 79... Rg8+ {[%clk 0:00:26.6]} 80. Kh5
{[%clk 0:01:02.5]} 80... Rh8+ {[%clk 0:00:27.8]} 81. Kg4 {[%clk 0:01:04.2]}
81... Rg8+ {[%clk 0:00:29]} 82. Kh3 {[%clk 0:01:05.8]} 82... Rh8 {[%clk
0:00:26.5]} 83. Rf2 {[%clk 0:01:07]} 83... Ke4 {[%clk 0:00:26.9]} 84. Rf1 {[%clk
0:01:06.9]} 84... Ke5 {[%clk 0:00:27.3]} 85. Rf2 {[%clk 0:01:08.4]} 85... Ke4
{[%clk 0:00:28.5]} 86. Rf7 {[%clk 0:01:09.6]} 86... Ke5 {[%clk 0:00:25.7]} 87.
Kg4 {[%clk 0:01:06.4]} 87... Rg8+ {[%clk 0:00:26.2]} 88. Kf3 {[%clk 0:01:07.9]}
88... Rh8 {[%clk 0:00:24.6]} 89. Rf4 {[%clk 0:01:09.2]} 89... Rh7 {[%clk
0:00:23.8]} 90. Ke3 {[%clk 0:01:06]} 90... Rh8 {[%clk 0:00:23.5]} 91. Kf3 {[%clk
0:01:04.4]} 91... Rh7 {[%clk 0:00:24.2]} 92. Ra4 {[%clk 0:01:05.6]} 92... Rh8
{[%clk 0:00:22.4]} 93. h5 {[%clk 0:01:05.7]} 93... Kf5 {[%clk 0:00:21.5]} 94.
Ra5+ {[%clk 0:01:06.5]} 94... Kf6 {[%clk 0:00:22.6]} 95. Kf4 {[%clk 0:01:08.4]}
95... Rb8 {[%clk 0:00:22.7]} 96. Ra6+ {[%clk 0:01:07.2]} 96... Kg7 {[%clk
0:00:23.1]} 97. Rg6+ {[%clk 0:01:04.7]} 97... Kh7 {[%clk 0:00:24.1]} 1/2-1/2

[Event "*** Titled Tuesday 3|2 Blitz"]
[Site "Chess.com"]
[Date "2015.10.06"]
[Round "3"]
[White "lorcho"]
[Black "Andnar"]
[Result "1-0"]
[WhiteElo "2614"]
[BlackElo "2249"]
[TimeControl "180+2"]
[EndTime "17:28:28 PDT"]
[Termination "lorcho won by resignation"]

1. e4 {[%clk 0:03:01.9]} 1... e5 {[%clk 0:02:55.7]} 2. Nf3 {[%clk 0:03:01.7]}
2... Nc6 {[%clk 0:02:56.8]} 3. Bb5 {[%clk 0:03:02.1]} 3... a6 {[%clk 0:02:58]}
4. Bxc6 {[%clk 0:03:03.2]} 4... dxc6 {[%clk 0:02:58.8]} 5. O-O {[%clk
0:03:04.6]} 5... Bg4 {[%clk 0:02:58.8]} 6. h3 {[%clk 0:03:02.2]} 6... h5 {[%clk
0:03:00.2]} 7. d3 {[%clk 0:03:03]} 7... Bc5 {[%clk 0:02:58.5]} 8. Be3 {[%clk
0:02:57.8]} 8... Bxe3 {[%clk 0:02:37]} 9. fxe3 {[%clk 0:02:59.7]} 9... Bxf3
{[%clk 0:02:38.5]} 10. Qxf3 {[%clk 0:03:01]} 10... Nf6 {[%clk 0:02:40.1]} 11.
Qg3 {[%clk 0:02:58.6]} 11... Qe7 {[%clk 0:02:37]} 12. Qxg7 {[%clk 0:02:57.5]}
12... O-O-O {[%clk 0:02:27.3]} 13. Qxf6 {[%clk 0:02:57.5]} 13... Qc5 {[%clk
0:02:27.3]} 14. Nc3 {[%clk 0:02:57.3]} 14... Qxe3+ {[%clk 0:02:27.8]} 15. Qf2
{[%clk 0:02:58.3]} 15... Qh6 {[%clk 0:02:26.2]} 16. Qa7 {[%clk 0:02:57.6]} 16...
Rhg8 {[%clk 0:02:25.4]} 17. Rxf7 {[%clk 0:02:53.4]} 1-0

[Event "*** Titled Tuesday 3|2 Blitz"]
[Site "Chess.com"]
[Date "2015.10.06"]
[Round "3"]
[White "Gabrinsky"]
[Black "ItalianMachine"]
[Result "1-0"]
[WhiteElo "2480"]
[BlackElo "2204"]
[TimeControl "180+2"]
[EndTime "17:30:48 PDT"]
[Termination "Gabrinsky won by resignation"]

1. e4 {[%clk 0:03:01.9]} 1... e5 {[%clk 0:03:00.8]} 2. Nf3 {[%clk 0:03:02.9]}
2... Nc6 {[%clk 0:03:02.2]} 3. d4 {[%clk 0:03:04.4]} 3... exd4 {[%clk
0:03:03.2]} 4. Bc4 {[%clk 0:03:06]} 4... d6 {[%clk 0:02:55.6]} 5. Nxd4 {[%clk
0:03:06.5]} 5... Nf6 {[%clk 0:02:55.5]} 6. Nc3 {[%clk 0:03:06.4]} 6... Be7
{[%clk 0:02:56.2]} 7. Be3 {[%clk 0:03:04.3]} 7... O-O {[%clk 0:02:57.5]} 8. f3
{[%clk 0:03:05.3]} 8... Ne5 {[%clk 0:02:49]} 9. Be2 {[%clk 0:03:05.7]} 9... c6
{[%clk 0:02:50.6]} 10. Qd2 {[%clk 0:03:06.5]} 10... Qc7 {[%clk 0:02:49.1]} 11.
a4 {[%clk 0:02:58.3]} 11... Rd8 {[%clk 0:02:50.1]} 12. O-O {[%clk 0:02:51.3]}
12... d5 {[%clk 0:02:50.8]} 13. f4 {[%clk 0:02:49]} 13... Neg4 {[%clk
0:02:47.3]} 14. e5 {[%clk 0:02:49.1]} 14... Nxe3 {[%clk 0:02:39.5]} 15. Qxe3
{[%clk 0:02:50.3]} 15... Ng4 {[%clk 0:02:11.7]} 16. Qg3 {[%clk 0:02:37.8]} 16...
Nh6 {[%clk 0:01:59.8]} 17. Kh1 {[%clk 0:02:34.2]} 17... Bc5 {[%clk 0:01:57.9]}
18. Nb3 {[%clk 0:02:31.6]} 18... Nf5 {[%clk 0:01:59]} 19. Qf3 {[%clk 0:02:24.7]}
19... Nd4 {[%clk 0:01:51.5]} 20. Nxd4 {[%clk 0:02:23.2]} 20... Bxd4 {[%clk
0:01:53.4]} 21. Bd3 {[%clk 0:02:22.7]} 21... Bxc3 {[%clk 0:01:32.2]} 22. bxc3
{[%clk 0:02:23.6]} 22... g6 {[%clk 0:01:33]} 23. f5 {[%clk 0:02:20.3]} 23...
Qxe5 {[%clk 0:01:21.3]} 24. fxg6 {[%clk 0:02:18.8]} 24... fxg6 {[%clk
0:01:15.4]} 25. Qf7+ {[%clk 0:02:19]} 25... Kh8 {[%clk 0:01:16.8]} 26. Rae1
{[%clk 0:02:19.8]} 26... Qg7 {[%clk 0:01:16.8]} 27. Re8+ {[%clk 0:02:20]} 27...
Rxe8 {[%clk 0:01:18]} 28. Qxe8+ {[%clk 0:02:21.4]} 1-0